bitfinex/quotes_BTCUSD_20251224
["timestamp","ask_amount","ask_price","bid_price","bid_amount"]
[1766565450183,0.48474,86879.0,86874.0,0.01156]
[1766565450330,0.55380185,86879.0,86874.0,0.01156]
[1766565450535,0.49625026,86879.0,86874.0,0.01156]
[1766565450770,0.49625026,86879.0,86874.0,0.01097213]
[1766565450771,0.48474,86879.0,86874.0,0.01097213]
[1766565452501,0.48474,86879.0,86875.0,0.01151079]
[1766565452698,0.484191,86879.0,86876.0,0.01151065]
[1766565453604,0.48474,86887.0,86875.0,0.01151079]
[1766565453838,0.48474,86887.0,86877.0,0.01151052]
[1766565454039,0.48474,86887.0,86876.0,0.01151065]
[1766565454250,0.48474,86887.0,86880.0,0.01151012]
[1766565454438,0.48474,86887.0,86877.0,0.01151052]
[1766565454699,0.48474,86887.0,86876.0,0.01151065]
[1766565455098,0.48474,86885.0,86874.0,0.01097213]
[1766565455297,0.48474,86885.0,86875.0,0.01151079]
[1766565456864,0.48474,86885.0,86874.0,0.02248305]
[1766565457074,0.48474,86885.0,86875.0,0.01151079]
[1766565457314,0.48474,86885.0,86874.0,0.08003727]
[1766565457315,0.48474,86885.0,86874.0,0.02248305]
[1766565457461,0.48474,86885.0,86876.0,0.01151065]
[1766565458868,0.5379598,86884.0,86876.0,0.01151065]
[1766565459077,0.0247098,86883.0,86876.0,0.01151065]
[1766565459838,0.0247098,86883.0,86877.0,0.01151052]
[1766565460158,0.0247098,86883.0,86878.0,0.01151039]
[1766565460358,0.000549,86878.0,86874.0,0.01097213]
[1766565460611,0.0247098,86883.0,86875.0,0.01151079]
[1766565460814,0.5379598,86883.0,86874.0,0.02248305]
[1766565460994,0.0247098,86882.0,86876.0,0.01151065]
[1766565461196,0.0247098,86882.0,86874.0,0.02248305]
[1766565461392,0.0247098,86882.0,86874.0,0.01097213]
[1766565461613,0.5379598,86882.0,86874.0,0.01097213]
[1766565461753,0.0247098,86881.0,86874.0,0.01097213]
[1766565461954,0.51325,86880.0,86874.0,0.01097213]
[1766565462154,0.01150999,86881.0,86874.0,0.01042313]
[1766565462155,0.5379598,86879.0,86874.0,0.01042313]
[1766565462357,0.0247098,86878.0,86874.0,0.01042313]
[1766565466934,8e-07,86878.0,86874.0,0.01042313]
[1766565467139,0.51325,86885.0,86875.0,0.01151079]
[1766565467574,0.51325,86885.0,86876.0,0.01151065]
[1766565468367,0.51325,86885.0,86877.0,0.01151052]
[1766565468682,0.51325,86885.0,86876.0,0.01151065]
[1766565468859,0.51325,86885.0,86874.0,0.01042313]
[1766565469067,0.52475959,86884.0,86874.0,0.01042313]
[1766565469486,0.51325,86884.0,86874.0,0.01042313]
[1766565469680,0.51325,86884.0,86874.0,0.02193405]
[1766565469851,0.51325,86884.0,86874.0,0.01042313]
[1766565470253,0.51325,86884.0,86876.0,0.01151065]
[1766565470739,0.51325,86884.0,86874.0,0.02193405]
[1766565470910,0.51325,86884.0,86875.0,0.01151079]
[1766565471116,0.51325,86884.0,86874.0,0.02193405]
[1766565471320,0.51325,86884.0,86876.0,0.01151065]
[1766565471519,0.51325,86884.0,86878.0,0.01151039]
[1766565471865,1.69e-06,86888.0,86880.0,0.01151012]
[1766565472042,0.01073089,86887.0,86879.0,0.01151026]
[1766565472336,1.69e-06,86888.0,86878.0,0.06906208]
[1766565472498,0.01073095,86887.0,86879.0,0.01151026]
[1766565472699,1.69e-06,86888.0,86879.0,0.01151026]
[1766565472883,0.52398095,86887.0,86878.0,0.01151039]
[1766565473085,0.51325,86887.0,86878.0,0.01151039]
[1766565474220,0.51325,86887.0,86877.0,0.06906269]
[1766565474221,0.51325,86887.0,86877.0,0.01151052]
[1766565475016,0.51325,86887.0,86878.0,0.01151039]
[1766565475246,0.51325,86887.0,86877.0,0.01151052]
[1766565475420,0.51325,86887.0,86880.0,0.01151012]
[1766565475692,0.51325,86887.0,86883.0,0.01150973]
[1766565475872,0.51325,86887.0,86882.0,0.01150986]
[1766565476120,1.69e-06,86888.0,86881.0,0.01150999]
[1766565476538,1.69e-06,86888.0,86880.0,0.02307012]
[1766565476954,1.69e-06,86888.0,86881.0,0.01150999]
[1766565477365,1.69e-06,86888.0,86880.0,0.02307012]
[1766565477592,1.69e-06,86888.0,86881.0,0.06905997]
[1766565477777,1.69e-06,86888.0,86882.0,0.01150986]
[1766565478346,1.69e-06,86888.0,86883.0,0.01150973]
[1766565478554,1.69e-06,86888.0,86882.0,0.01150986]
[1766565478959,0.02472512,86888.0,86882.0,0.01150986]
[1766565479171,0.02472512,86888.0,86883.0,0.01150973]
[1766565479388,0.53565512,86888.0,86882.0,0.01150986]
[1766565479696,0.02472343,86887.0,86884.0,0.01150959]
[1766565480255,0.01292046,86887.0,86884.0,0.01150959]
[1766565480500,1.69e-06,86888.0,86882.0,0.01150986]
[1766565480990,1.69e-06,86888.0,86880.0,0.02307012]
[1766565480991,1.69e-06,86888.0,86881.0,0.01150999]
[1766565481149,1.69e-06,86888.0,86885.0,0.01150946]
[1766565481356,1.69e-06,86888.0,86884.0,0.01150959]
[1766565482001,1.69e-06,86888.0,86885.0,0.01150946]
[1766565482594,1.69e-06,86888.0,86882.0,0.01150986]
[1766565483413,1.69e-06,86888.0,86883.0,0.01150973]
[1766565483639,1.69e-06,86888.0,86885.0,0.01150946]
[1766565484608,1.69e-06,86888.0,86885.0,0.06905641]
[1766565485055,1.69e-06,86888.0,86885.0,0.01150946]
[1766565485618,1.69e-06,86888.0,86884.0,0.01150959]
[1766565485815,1.69e-06,86888.0,86885.0,0.01150946]
[1766565486031,0.01150708,86903.0,86893.0,0.06904997]
[1766565486032,0.55190307,86903.0,86893.0,0.06904997]
[1766565486233,0.01072623,86902.0,86894.0,0.0690492]
[1766565486438,0.01072623,86901.0,86896.0,0.011508]
[1766565486663,0.01072623,86900.0,86896.0,0.011508]
[1766565486867,0.51097934,86903.0,86897.0,0.01150787]
[1766565487067,4.934e-05,86903.0,86892.0,0.23016917]
[1766565487429,4.934e-05,86903.0,86891.0,0.01156]
[1766565487430,4.934e-05,86903.0,86893.0,0.06905009]
[1766565487657,4.934e-05,86903.0,86896.0,0.011508]
[1766565487865,4.934e-05,86903.0,86896.0,0.023068]
[1766565488411,4.934e-05,86903.0,86896.0,0.01156]
[1766565488612,4.934e-05,86903.0,86896.0,0.00307336]
[1766565488965,4.934e-05,86903.0,86897.0,0.00228139]
[1766565489122,4.934e-05,86903.0,86897.0,0.00173139]
[1766565489550,0.51097934,86903.0,86897.0,0.00173139]
[1766565490015,0.51093,86902.0,86897.0,4.449e-05]
[1766565490244,0.51093,86899.0,86897.0,4.49e-06]
[1766565490464,0.51093,86899.0,86891.0,0.01156]
[1766565490899,0.51093,86897.0,86881.0,0.05754999]
[1766565491110,0.51093,86894.0,86883.0,0.01150973]
[1766565491310,0.51093,86894.0,86884.0,0.01150959]
[1766565491512,0.51093,86894.0,86882.0,0.02306986]
[1766565491740,0.51093,86893.0,86882.0,0.02306986]
[1766565491963,0.51093,86893.0,86883.0,0.01150973]
[1766565492193,0.5224384,86893.0,86882.0,0.01156]
[1766565492408,0.51093,86893.0,86882.0,0.02306986]
[1766565492635,0.51093,86892.0,86882.0,0.01156]
[1766565493292,0.51093,86890.0,86880.0,0.01151012]
[1766565493808,0.51093,86890.0,86881.0,0.01150999]
[1766565494019,0.51093,86890.0,86880.0,0.01151012]
[1766565494437,0.51093,86890.0,86879.0,0.01156]
[1766565494657,0.5224388,86890.0,86879.0,0.01156]
[1766565494875,0.51093,86886.0,86879.0,0.01156]
[1766565495851,0.50734188,86886.0,86879.0,0.01156]
[1766565496248,0.51885121,86886.0,86879.0,0.01156]
[1766565496470,0.50734188,86886.0,86879.0,0.01156]
[1766565498359,0.50734188,86886.0,86879.0,0.02307026]
[1766565498583,0.50734188,86886.0,86879.0,0.01156]
[1766565501878,0.28438684,86886.0,86879.0,0.01156]
[1766565504084,0.28438684,86886.0,86879.0,0.02307026]
[1766565504241,0.01156,86889.0,86883.0,0.01150973]
[1766565504443,0.01156,86891.0,86884.0,0.01150959]
[1766565504673,0.01156,86891.0,86883.0,0.01150973]
[1766565505247,0.01156,86891.0,86884.0,0.01150959]
[1766565505676,0.01156,86891.0,86885.0,0.06905643]
[1766565505893,0.01156,86891.0,86884.0,0.01150959]
[1766565506096,0.01156,86891.0,86885.0,0.01150946]
[1766565506299,0.01156,86891.0,86885.0,0.01135482]
[1766565506459,0.01156,86891.0,86884.0,0.01150959]
[1766565506977,0.01156,86891.0,86885.0,0.01150946]
[1766565507173,0.02471534,86893.0,86886.0,0.01150933]
[1766565507345,0.02471534,86893.0,86885.0,0.01150946]
[1766565507546,0.01156,86895.0,86884.0,0.01150959]
[1766565507928,0.53399814,86895.0,86883.0,0.01150973]
[1766565508065,0.02471534,86894.0,86883.0,0.01150973]
[1766565508260,0.02471534,86894.0,86885.0,0.01150946]
[1766565508649,0.02471534,86894.0,86884.0,0.01150959]
[1766565508800,0.02471534,86894.0,86885.0,0.01150946]
[1766565508999,0.02471534,86894.0,86884.0,0.01150959]
[1766565509204,0.02471534,86894.0,86883.0,0.01150973]
[1766565509402,0.55263534,86894.0,86884.0,0.01150959]
[1766565509584,0.02471534,86893.0,86884.0,0.01150959]
[1766565510790,0.55263534,86893.0,86882.0,0.06905888]
[1766565510994,0.02471534,86892.0,86883.0,0.01150973]
[1766565511602,0.02471534,86892.0,86885.0,0.01150946]
[1766565511798,0.02471534,86892.0,86887.0,0.0115092]
[1766565512029,0.01156,86896.0,86888.0,0.01150906]
[1766565512230,0.01156,86896.0,86889.0,0.01150893]
[1766565512454,0.01156,86896.0,86886.0,0.01150933]
[1766565512668,0.01156,86896.0,86885.0,0.01150946]
[1766565512878,0.01156,86896.0,86886.0,0.01150933]
[1766565513136,0.01156,86896.0,86887.0,0.0115092]
[1766565513354,0.01156,86896.0,86886.0,0.01150933]
[1766565515309,0.01156,86896.0,86887.0,0.0115092]
[1766565515552,0.01156,86896.0,86888.0,0.01150906]
[1766565515785,0.01156,86896.0,86887.0,0.0115092]
[1766565516018,0.01156,86896.0,86886.0,0.01150933]
[1766565516411,0.01156,86896.0,86887.0,0.0115092]
[1766565516612,0.01156,86896.0,86886.0,0.01150933]
[1766565517023,0.01156,86896.0,86887.0,0.0115092]
[1766565518160,0.01156,86897.0,86888.0,0.01150906]
[1766565518441,0.01156,86897.0,86887.0,0.45269995]
[1766565518636,0.01156,86897.0,86890.0,0.0115088]
[1766565518805,0.01156,86897.0,86888.0,0.01150906]
[1766565520388,0.01156,86897.0,86887.0,0.0115092]
[1766565520591,0.01156,86897.0,86886.0,0.01150933]
[1766565520794,0.01156,86897.0,86887.0,0.0115092]
[1766565520998,0.01156,86897.0,86886.0,0.01150933]
[1766565521330,0.01156,86897.0,86884.0,0.02306959]
[1766565521476,0.000549,86886.0,86884.0,0.01156]
[1766565521687,0.50580814,86895.0,86884.0,0.02306959]
[1766565521900,0.50580814,86895.0,86884.0,0.01156]
[1766565522311,0.4943,86894.0,86884.0,0.01156]
[1766565522508,0.50580827,86894.0,86884.0,0.01156]
[1766565523337,0.4943,86893.0,86884.0,0.011011]
[1766565523758,0.4943,86891.0,86883.0,0.00353054]
[1766565524556,0.50580867,86891.0,86883.0,0.00353054]
[1766565525274,0.4943,86889.0,86877.0,0.06906312]
[1766565525434,0.4943,86889.0,86879.0,0.01156]
[1766565525645,0.50580893,86889.0,86879.0,0.01156]
[1766565525849,0.4943,86889.0,86879.0,0.02307026]
[1766565527642,0.4943,86889.0,86880.0,0.01151012]
[1766565527842,0.4943,86889.0,86882.0,0.01150986]
[1766565528254,0.4943,86889.0,86883.0,0.01150973]
[1766565529561,0.17500501,86903.0,86883.0,0.01150973]
[1766565529562,0.01150761,86899.0,86886.0,0.01150933]
[1766565529698,0.01156,86898.0,86887.0,0.0115092]
[1766565530068,0.01156,86897.0,86887.0,0.0115092]
[1766565530273,0.01156,86897.0,86886.0,0.01150933]
[1766565530537,0.50580814,86895.0,86883.0,0.01150973]
[1766565530744,0.4943,86893.0,86880.0,0.01151012]
[1766565530899,0.4943,86882.0,86881.0,0.01156]
[1766565531098,0.01150853,86892.0,86881.0,0.01156]
[1766565531311,0.4943,86890.0,86881.0,0.01156]
[1766565531519,0.4943,86888.0,86881.0,0.01156]
[1766565535015,0.4943,86888.0,86881.0,0.00750128]
[1766565535450,0.4943,86888.0,86881.0,0.01901127]
[1766565535989,0.01156,86891.0,86883.0,0.01150973]
[1766565536572,0.01156,86891.0,86881.0,0.00750128]
[1766565536770,0.01156,86891.0,86882.0,0.01150986]
[1766565537085,0.01156,86891.0,86883.0,0.01150973]
[1766565537638,0.01156,86891.0,86884.0,0.01150959]
[1766565537839,0.01156,86891.0,86882.0,0.01150986]
[1766565538043,0.01156,86891.0,86884.0,0.01150959]
[1766565538452,0.01156,86891.0,86883.0,0.01150973]
[1766565539831,0.01156,86891.0,86882.0,0.01150986]
[1766565540035,0.01156,86891.0,86883.0,0.01150973]
[1766565540675,0.01156,86891.0,86884.0,0.01150959]
[1766565540905,0.01156,86891.0,86881.0,0.00750128]
[1766565540906,0.00055,86884.0,86881.0,0.00750128]
[1766565541352,0.5045,86885.0,86881.0,0.00750128]
[1766565541801,0.5045,86885.0,86877.0,0.01151052]
[1766565542005,0.01156,86890.0,86878.0,0.05755137]
[1766565542158,0.01156,86890.0,86880.0,0.01151012]
[1766565542366,0.01156,86890.0,86882.0,0.01150986]
[1766565542542,0.01156,86890.0,86881.0,0.01150999]
[1766565542745,0.01156,86890.0,86882.0,0.01150986]
[1766565543563,0.01156,86890.0,86883.0,0.01150973]
[1766565544244,0.01156,86890.0,86885.0,0.01150946]
[1766565544444,0.01156,86890.0,86884.0,0.01150959]
[1766565544657,0.01156,86890.0,86885.0,0.01150946]
[1766565544887,4.02e-06,86891.0,86887.0,0.0115092]
[1766565545116,0.53536796,86900.0,86888.0,0.02306906]
[1766565545331,0.03086796,86902.0,86897.0,0.01150787]
[1766565545556,0.5045,86902.0,86888.0,0.01156]
[1766565545757,0.5045,86902.0,86884.0,0.01150959]
[1766565545758,0.001099,86897.0,86886.0,0.01150933]
[1766565545957,0.5045,86895.0,86887.0,0.01156]
[1766565547103,0.51600814,86895.0,86887.0,0.01156]
[1766565547277,0.5045,86895.0,86887.0,0.01156]
[1766565547483,0.5045,86895.0,86883.0,0.01150973]
[1766565547484,0.000549,86887.0,86883.0,0.01150973]
[1766565547656,0.5045,86889.0,86884.0,0.02306959]
[1766565549780,0.5045,86889.0,86885.0,0.01150946]
[1766565550024,0.5045,86889.0,86886.0,0.01150933]
[1766565550588,0.5045,86889.0,86884.0,0.02306959]
[1766565550807,0.5045,86889.0,86885.0,0.01150946]
[1766565550986,0.5045,86889.0,86884.0,0.02306959]
[1766565550987,0.5045,86889.0,86884.0,0.01156]
[1766565553649,0.5045,86897.0,86887.0,0.0115092]
[1766565553882,0.01156,86900.0,86884.0,0.01156]
[1766565554119,0.01156,86900.0,86889.0,0.01150893]
[1766565554236,0.01156,86900.0,86890.0,0.0115088]
[1766565554442,0.5045,86900.0,86890.0,0.0115088]
[1766565554678,0.51602,86900.0,86892.0,0.01150853]
[1766565554937,0.51602,86900.0,86889.0,0.01152]
[1766565555060,0.51602,86900.0,86890.0,0.0115088]
[1766565555273,0.51602,86900.0,86889.0,0.01152]
[1766565555472,0.51602,86900.0,86890.0,0.0115088]
[1766565555675,0.51600761,86899.0,86889.0,0.01152]
[1766565556230,0.3116125,86898.0,86889.0,0.01152]
[1766565556427,0.5045,86896.0,86889.0,0.010971]
[1766565556810,0.02473325,86895.0,86889.0,0.010971]
[1766565557010,3.25e-06,86895.0,86889.0,0.010971]
[1766565557213,0.01152,86900.0,86895.0,0.00054575]
[1766565557413,0.01150774,86898.0,86889.0,0.010971]
[1766565557613,0.51600774,86898.0,86889.0,0.010971]
[1766565558185,0.5045,86898.0,86889.0,0.010971]
[1766565558457,0.01150787,86897.0,86889.0,0.010971]
[1766565558732,0.5045,86894.0,86889.0,1e-06]
[1766565561082,0.5045,86898.0,86889.0,1e-06]
[1766565561282,0.5045,86898.0,86894.0,0.000546]
[1766565561481,0.5045,86894.0,86889.0,1e-06]
[1766565561710,0.57355022,86894.0,86889.0,1e-06]
[1766565562000,0.51600827,86894.0,86889.0,1e-06]
[1766565562323,0.5045,86894.0,86889.0,1e-06]
[1766565562643,0.51600827,86894.0,86889.0,1e-06]
[1766565562789,0.5045,86894.0,86889.0,1e-06]
[1766565564998,0.51602,86900.0,86889.0,0.06905461]
[1766565565239,0.51600668,86906.0,86893.0,0.0115084]
[1766565565455,0.01152,86904.0,86894.0,0.01150827]
[1766565565798,0.01152,86904.0,86895.0,0.01150814]
[1766565566030,0.5045,86906.0,86895.0,0.01150814]
[1766565566205,0.01152,86905.0,86895.0,0.01150814]
[1766565566345,0.02302681,86905.0,86894.0,0.01150827]
[1766565566564,0.01150695,86904.0,86892.0,0.01150853]
[1766565567499,0.02302681,86905.0,86893.0,0.0115084]
[1766565567644,0.01155642,86903.0,86892.0,0.01150853]
[1766565567846,0.01155642,86903.0,86891.0,0.01150867]
[1766565568281,0.01155642,86903.0,86890.0,0.05754359]
[1766565568282,0.01150721,86902.0,86889.0,1e-06]
[1766565568475,0.52238734,86901.0,86889.0,1e-06]
[1766565568705,0.51088,86899.0,86889.0,0.01150993]
[1766565568870,0.000548,86889.0,86887.0,0.0115092]
[1766565569102,0.000548,86889.0,86888.0,0.01152]
[1766565569271,0.51088,86898.0,86888.0,0.02302906]
[1766565569496,0.51088,86898.0,86890.0,0.0115088]
[1766565569676,4.934e-05,86903.0,86893.0,0.0115084]
[1766565569872,4.934e-05,86903.0,86892.0,0.01150853]
[1766565569873,0.01156934,86903.0,86892.0,0.01150853]
[1766565570109,0.01156934,86903.0,86893.0,0.0115084]
[1766565570360,0.01156934,86903.0,86892.0,0.01150853]
[1766565570547,0.02307642,86903.0,86890.0,0.0115088]
[1766565570891,0.01156934,86903.0,86892.0,0.01150853]
[1766565571305,0.01156934,86903.0,86894.0,0.01150827]
[1766565571503,0.03624979,86907.0,86895.0,0.01152]
[1766565571674,0.01150668,86906.0,86895.0,0.01152]
[1766565571880,0.01150681,86905.0,86895.0,0.01152]
[1766565572128,0.02472979,86905.0,86895.0,0.01152]
[1766565572538,0.5471166,86905.0,86895.0,0.01152]
[1766565572761,0.54711674,86904.0,86895.0,0.01152]
[1766565572896,0.03623687,86903.0,86895.0,0.01152]
[1766565573102,0.51088,86899.0,86895.0,2e-06]
[1766565573972,0.51088,86913.0,86899.0,0.000549]
[1766565574092,0.01150642,86908.0,86899.0,0.000549]
[1766565574288,0.52238642,86908.0,86899.0,0.000549]
[1766565574493,0.02473023,86907.0,86896.0,0.011508]
[1766565574892,0.02473023,86907.0,86897.0,0.01150787]
[1766565575346,0.02473023,86907.0,86896.0,0.011508]
[1766565575896,0.02473023,86907.0,86897.0,0.01150787]
[1766565576502,0.02473023,86907.0,86895.0,0.01151014]
[1766565576742,0.02473023,86907.0,86896.0,0.011508]
[1766565577281,0.02473023,86907.0,86897.0,0.01150787]
[1766565577482,0.53561023,86907.0,86896.0,0.011508]
[1766565577782,0.53561023,86906.0,86896.0,0.011508]
[1766565577972,0.51088,86906.0,86896.0,0.011508]
[1766565578499,0.51088,86906.0,86895.0,0.0690505]
[1766565578500,0.01152,86909.0,86906.0,0.000549]
[1766565578949,0.01152,86909.0,86905.0,0.01150681]
[1766565579583,0.01152,86909.0,86906.0,0.01150668]
[1766565579868,0.010971,86909.0,86906.0,0.01150668]
[1766565580245,1e-06,86909.0,86906.0,0.01150668]
[1766565581199,1e-06,86909.0,86906.0,0.06903973]
[1766565581404,0.50819,86918.0,86908.0,0.01150642]
[1766565581604,0.0362414,86917.0,86906.0,0.06904003]
[1766565581823,0.0362414,86917.0,86907.0,0.01150655]
[1766565582017,0.0362414,86917.0,86904.0,0.06904135]
[1766565582238,0.50819,86916.0,86906.0,0.01150668]
[1766565582446,0.5329114,86915.0,86905.0,0.01150681]
[1766565582645,0.50819,86915.0,86905.0,0.01150681]
[1766565582939,0.50819,86915.0,86906.0,0.01150668]
[1766565583094,0.01152,86917.0,86910.0,0.01150615]
[1766565583297,0.06902715,86923.0,86901.0,0.24166539]
[1766565583298,0.50819,86921.0,86915.0,0.06903262]
[1766565583568,0.07690796,86928.0,86913.0,0.01150575]
[1766565583569,0.02471045,86920.0,86913.0,0.01150575]
[1766565583751,0.01152,86922.0,86916.0,0.01150536]
[1766565584104,0.01152,86922.0,86915.0,0.01150549]
[1766565584330,0.01152,86923.0,86916.0,0.01150536]
[1766565584539,0.01152,86923.0,86916.0,0.06903178]
[1766565584751,0.01152,86923.0,86916.0,0.01150536]
[1766565585412,0.01152,86923.0,86914.0,0.0575277]
[1766565585606,0.01152,86923.0,86915.0,0.01150549]
[1766565586250,0.01152,86923.0,86913.0,0.06903397]
[1766565586454,0.01152,86923.0,86914.0,0.01150562]
[1766565586783,0.01152,86923.0,86915.0,0.01150549]
[1766565586975,0.01152,86923.0,86916.0,0.01150536]
[1766565587274,0.01152,86923.0,86917.0,0.01150522]
[1766565587481,0.01152,86923.0,86918.0,0.01150509]
[1766565587783,0.01152,86923.0,86917.0,0.01150522]
[1766565588451,0.01152,86923.0,86918.0,0.01150509]
[1766565588648,0.01152,86923.0,86917.0,0.01150522]
[1766565589190,0.01152,86923.0,86918.0,0.01150509]
[1766565590198,0.01152,86923.0,86917.0,0.01150522]
[1766565590490,0.01152,86925.0,86917.0,0.01150522]
[1766565590690,0.01152,86925.0,86913.0,0.0575283]
[1766565590691,0.01152,86925.0,86914.0,0.01150562]
[1766565590849,0.01152,86925.0,86912.0,0.02302589]
[1766565590850,0.000549,86917.0,86912.0,0.02302589]
[1766565591251,0.0115043,86924.0,86912.0,0.02302589]
[1766565591444,0.53121417,86925.0,86913.0,0.01150575]
[1766565592059,0.0115043,86924.0,86912.0,0.02302589]
[1766565592260,0.50819,86924.0,86913.0,0.01150575]
[1766565592679,0.5196943,86924.0,86912.0,0.02302589]
[1766565592878,0.52005158,86924.0,86912.0,0.02302589]
[1766565593102,0.52005158,86924.0,86913.0,0.01150575]
[1766565593103,0.50854728,86924.0,86913.0,0.01150575]
[1766565593315,0.52005158,86924.0,86912.0,0.02302589]
[1766565594000,0.52005158,86924.0,86913.0,0.01150575]
[1766565594200,0.50854728,86924.0,86913.0,0.01150575]
[1766565595245,0.52005158,86924.0,86912.0,0.02302589]
[1766565595464,0.50854728,86924.0,86913.0,0.01150575]
[1766565595652,0.00035728,86924.0,86913.0,0.01150575]
[1766565595831,0.00035728,86924.0,86915.0,0.01150549]
[1766565596025,0.00035728,86924.0,86913.0,0.01150575]
[1766565596235,0.50819,86930.0,86916.0,0.01150536]
[1766565596519,0.5773188,86930.0,86917.0,0.01152]
[1766565596721,0.0115039,86927.0,86917.0,0.01152]
[1766565596928,0.01150377,86928.0,86917.0,0.01152]
[1766565597158,0.0690227,86928.0,86917.0,0.01152]
[1766565597495,0.01150377,86928.0,86917.0,0.01152]
[1766565597738,0.0115039,86927.0,86917.0,0.01152]
[1766565598091,0.01150403,86926.0,86917.0,0.01152]
[1766565598417,0.01150469,86921.0,86917.0,0.010971]
[1766565598656,0.01150483,86920.0,86917.0,0.010971]
[1766565598823,0.06902942,86920.0,86917.0,0.010971]
[1766565599460,0.01150496,86919.0,86918.0,0.01152]
[1766565599619,0.01150496,86919.0,86918.0,0.01097]
[1766565600320,0.01150522,86917.0,86906.0,0.01150668]
[1766565600582,0.54918,86921.0,86909.0,0.01150628]
[1766565600712,0.01150483,86920.0,86917.0,0.001099]
[1766565600908,0.05752548,86918.0,86917.0,0.012619]
[1766565601116,0.06902952,86920.0,86917.0,0.01152]
[1766565601821,0.06902952,86920.0,86917.0,0.00824146]
[1766565602241,0.06902952,86920.0,86906.0,0.01150668]
[1766565602242,0.01150589,86912.0,86902.0,0.04604]
[1766565602446,0.01150589,86912.0,86890.0,0.44106804]
[1766565602447,0.01150642,86908.0,86903.0,0.01152]
[1766565602646,0.01150655,86907.0,86903.0,0.01152]
[1766565602836,0.01150642,86908.0,86903.0,0.01152]
[1766565603033,0.61822133,86905.0,86891.0,0.04604]
[1766565603234,0.61822133,86905.0,86892.0,0.01152]
[1766565603235,0.01150734,86901.0,86892.0,0.01152]
[1766565603646,0.56068708,86903.0,86892.0,0.01152]
[1766565604463,0.01150721,86902.0,86892.0,0.01187728]
[1766565604896,0.56068721,86902.0,86892.0,0.01187728]
[1766565605067,0.56068774,86898.0,86892.0,0.01187728]
[1766565605269,0.05754137,86894.0,86876.0,0.04606416]
[1766565605473,0.56068853,86892.0,86878.0,0.05755039]
[1766565605694,0.01150867,86891.0,86879.0,0.02303026]
[1766565605894,0.56068853,86892.0,86880.0,0.01151012]
[1766565606098,0.01150867,86891.0,86879.0,0.02303026]
[1766565606375,0.0115088,86890.0,86879.0,0.02303026]
[1766565606572,0.01150867,86891.0,86879.0,0.02303026]
[1766565606772,0.01150893,86889.0,86879.0,0.01152]
[1766565607018,0.12891567,86897.0,86879.0,0.01152]
[1766565607019,0.54918,86884.0,86879.0,0.01152]
[1766565607277,0.548631,86884.0,86879.0,0.01152]
[1766565610398,0.548631,86884.0,86880.0,0.01151012]
[1766565610942,0.548631,86884.0,86881.0,0.01150999]
[1766565611214,0.548631,86884.0,86883.0,0.05754865]
[1766565611411,0.54918,86894.0,86889.0,0.01150893]
[1766565611640,0.54918,86894.0,86890.0,0.0115088]
[1766565611841,0.54918,86894.0,86891.0,0.01150867]
[1766565611976,0.02303026,86896.0,86894.0,0.05754137]
[1766565612339,0.03455594,86905.0,86900.0,0.05753694]
[1766565612549,0.01152,86906.0,86901.0,0.01150734]
[1766565612737,0.01152,86906.0,86900.0,0.01150747]
[1766565612892,0.01152,86906.0,86899.0,0.01150761]
[1766565613095,0.5607,86906.0,86903.0,0.01150708]
[1766565613291,0.00055,86903.0,86902.0,0.01150721]
[1766565613731,0.5607,86906.0,86902.0,0.01150721]
[1766565614097,0.5607,86906.0,86903.0,0.01150708]
[1766565614306,0.56105728,86906.0,86903.0,0.01150708]
[1766565614559,0.58373554,86914.0,86911.0,0.01150602]
[1766565614757,0.04604,86923.0,86915.0,0.01150549]
[1766565614954,0.00055,86915.0,86912.0,0.01150589]
[1766565615259,0.5607,86922.0,86913.0,0.01150575]
[1766565615481,0.5607,86922.0,86914.0,0.01150562]
[1766565615815,0.5607,86922.0,86915.0,0.01150549]
[1766565615816,0.54918,86922.0,86915.0,0.01150549]
[1766565615937,0.01152,86921.0,86919.0,0.06902936]
[1766565616140,0.00010712,86923.0,86921.0,0.000549]
[1766565616399,0.00010712,86923.0,86920.0,0.06902853]
[1766565616977,0.00010712,86923.0,86919.0,0.01150496]
[1766565617184,0.00010712,86923.0,86920.0,0.06902853]
[1766565617366,0.00010712,86923.0,86920.0,0.01150483]
[1766565617760,0.00010712,86923.0,86920.0,0.06902858]
[1766565618186,0.00010712,86923.0,86921.0,0.05752305]
[1766565618402,1.2e-07,86923.0,86921.0,0.05752305]
[1766565620058,1.2e-07,86923.0,86920.0,0.06902858]
[1766565621453,1.2e-07,86923.0,86920.0,0.01150483]
[1766565621619,1.2e-07,86923.0,86920.0,0.01139783]
[1766565623003,1.2e-07,86923.0,86920.0,0.06892146]
[1766565623226,1.2e-07,86923.0,86920.0,0.01139783]
[1766565623888,1.2e-07,86923.0,86919.0,0.01150496]
[1766565624089,1.2e-07,86923.0,86920.0,0.01150483]
[1766565625657,0.00055,86920.0,86917.0,0.01150522]
[1766565625861,0.35732,86920.0,86913.0,0.02302575]
[1766565626304,0.35677,86920.0,86913.0,0.06903402]
[1766565626487,0.33374,86918.0,86903.0,0.01152]
[1766565626712,0.28343,86912.0,86899.0,0.01150761]
[1766565626941,0.13382,86910.0,86896.0,0.01152]
[1766565627118,0.13382,86910.0,86901.0,0.05753624]
[1766565627326,0.13382,86910.0,86899.0,0.01150761]
[1766565627522,0.13382,86910.0,86905.0,0.01150681]
[1766565627683,0.13382,86910.0,86904.0,0.01150695]
[1766565627885,0.13382,86910.0,86905.0,0.01150681]
[1766565628139,0.13382,86910.0,86906.0,0.01150668]
[1766565628347,0.13382,86910.0,86907.0,0.01150655]
[1766565628550,0.13382,86910.0,86906.0,0.01150668]
[1766565628845,0.13382,86910.0,86907.0,0.01150655]
[1766565629138,0.13382,86910.0,86906.0,0.01150668]
[1766565629497,0.13382,86910.0,86907.0,0.01150655]
[1766565629698,0.00055,86907.0,86906.0,0.01150668]
[1766565629900,0.13382,86910.0,86906.0,0.01150668]
[1766565630346,0.13382,86910.0,86903.0,0.01150708]
[1766565630546,0.13382,86910.0,86904.0,0.01150695]
[1766565630883,0.13382,86910.0,86905.0,0.01150681]
[1766565631315,0.13382,86910.0,86906.0,0.01150668]
[1766565632260,0.13382,86910.0,86905.0,0.01150681]
[1766565633088,0.13382,86910.0,86906.0,0.01150668]
[1766565633324,0.133271,86910.0,86907.0,0.0690388]
[1766565633519,0.01152,86911.0,86910.0,0.05753077]
[1766565634546,0.14042248,86919.0,86915.0,0.01150549]
[1766565634744,0.01152,86918.0,86915.0,0.01150549]
[1766565635995,0.01152,86918.0,86912.0,0.01150589]